bitfinex-derivatives/quotes_ETHF0:USTF0_20250214
["timestamp","ask_amount","ask_price","bid_price","bid_amount"]
[1739549664496,0.73399,2724.2,2723.9,0.73405]
[1739549664685,1.904,2724.4,2724.1,0.73399]
[1739549664686,2.63794,2724.4,2724.1,0.73399]
[1739549665089,2.63794,2724.4,2723.7,3.2078]
[1739549665295,0.73397,2724.3,2724.0,0.73402]
[1739549665486,5.1118,2724.4,2723.7,3.2078]
[1739549665694,0.73397,2724.3,2724.1,0.73399]
[1739549665898,1.904,2724.4,2724.3,0.73395]
[1739549666100,1.904,2724.5,2724.3,0.73394]
[1739549666398,2.6379,2724.5,2724.3,0.73394]
[1739549666700,1.904,2724.5,2723.8,0.0055139]
[1739549666901,0.73394,2724.4,2724.2,0.73396]
[1739549667199,0.73397,2724.3,2724.1,0.734]
[1739549667794,4.1346,2724.4,2723.8,0.0055139]
[1739549667996,4.1346,2724.4,2724.2,0.73397]
[1739549668199,4.1346,2724.4,2723.8,1.8407139]
[1739549668402,4.86854,2724.4,2724.2,0.73397]
[1739549668598,0.73397,2724.3,2724.1,0.734]
[1739549669204,4.1346,2724.4,2723.8,0.0055139]
[1739549669599,4.1346,2724.4,2724.2,0.73398]
[1739549669796,4.1346,2724.4,2723.8,0.0055139]
[1739549669997,4.1346,2724.4,2724.3,0.73395]
[1739549670199,0.73399,2724.2,2724.1,0.73399]
[1739549670703,0.73401,2724.1,2724.0,0.73402]
[1739549671001,3.5841696,2724.3,2723.8,0.0055139]
[1739549671204,4.1346,2724.4,2724.3,0.73395]
[1739549671502,0.73396,2724.3,2724.2,0.73396]
[1739549672005,4.86854,2724.4,2724.3,0.73395]
[1739549672396,4.1346,2724.4,2724.3,0.73395]
[1739549672700,0.73397,2724.3,2724.1,0.73398]
[1739549672894,0.73396,2724.3,2724.2,0.73398]
[1739549673097,0.73396,2724.3,2723.8,0.0055139]
[1739549673098,4.1346,2724.4,2723.8,0.0055139]
[1739549673394,3.5841696,2724.3,2724.2,0.73398]
[1739549673598,0.73395,2724.3,2724.2,0.73398]
[1739549674903,4.1346,2724.4,2723.8,1.8407039]
[1739549675106,3.2078,2724.4,2724.3,0.73395]
[1739549675306,3.94172,2724.4,2724.3,0.73395]
[1739549675493,3.2078,2724.4,2723.9,1.8351]
[1739549675809,0.73396,2724.3,2724.2,0.73395]
[1739549676298,3.2078,2724.4,2723.8,0.0055139]
[1739549676605,4.3181196,2724.3,2724.2,0.73398]
[1739549676905,0.734,2724.2,2724.1,0.73399]
[1739549677307,0.73405,2724.0,2723.9,0.73404]
[1739549677804,0.73406,2724.0,2723.9,0.73404]
[1739549678197,0.73406,2723.9,2723.8,0.0055139]
[1739549678602,1.63104,2724.0,2723.9,0.73406]
[1739549679099,3.5841696,2724.3,2723.9,0.73406]
[1739549679299,3.2078,2724.4,2724.3,0.73395]
[1739549679500,0.73402,2724.1,2724.0,0.73399]
[1739549679699,3.2078,2724.4,2723.8,0.0055139]
[1739549679899,3.2078,2724.4,2724.2,0.73395]
[1739549679900,0.73397,2724.3,2724.2,0.73395]
[1739549681006,3.2078,2724.4,2723.9,1.83516]
[1739549681209,2.8,2724.5,2723.8,0.0055139]
[1739549681210,0.897,2724.5,2724.4,0.73392]
[1739549681505,1.6309,2724.5,2724.4,0.73392]
[1739549681704,0.73396,2724.4,2724.3,0.73394]
[1739549681901,0.734,2724.2,2724.1,0.73399]
[1739549682494,3.5841696,2724.3,2723.8,0.0055139]
[1739549682698,0.73405,2724.0,2723.9,0.73403]
[1739549682901,3.2078,2724.1,2723.8,0.0055139]
[1739549683106,3.2078,2724.1,2723.8,0.7395639]
[1739549683107,0.73406,2723.9,2723.8,0.7395639]
[1739549683408,0.73406,2723.9,2723.8,0.7396039]
[1739549683607,0.73406,2723.9,2723.8,0.0055139]
[1739549684607,1.68236,2723.9,2723.8,0.0055139]
[1739549684807,7.68236,2723.9,2723.8,0.0055139]
[1739549685009,2.8503,2723.9,2723.0,3.2078]
[1739549685201,3.2078,2723.7,2723.6,0.73414]
[1739549686212,3.94191,2723.7,2723.4,0.0055139]
[1739549686509,0.911,2723.6,2723.5,0.73416]
[1739549688305,3.2078,2723.7,2723.6,0.73414]
[1739549689310,0.0055139,2723.9,2723.4,0.0055139]
[1739549689500,0.0055139,2723.9,2723.8,0.73409]
[1739549693610,0.0055139,2723.9,2723.8,3.94189]
[1739549693807,3.15993872,2724.7,2723.9,1.83516]
[1739549694007,3.15993872,2724.7,2724.1,1.83502]
[1739549694207,0.73389,2724.6,2724.5,0.73389]
[1739549695003,3.15993872,2724.7,2724.4,0.7339]
[1739549695004,0.73391,2724.5,2724.4,0.7339]
[1739549695205,3.15993872,2724.7,2723.7,1.83526]
[1739549695407,0.73397,2724.3,2724.2,0.73396]
[1739549695613,3.59726498,2724.4,2724.3,0.73395]
[1739549696403,2.86332498,2724.4,2724.3,0.73395]
[1739549696607,3.2078,2724.5,2724.4,0.73392]
[1739549699408,3.9417,2724.5,2724.4,0.73392]
[1739549700010,0.73398,2724.3,2724.2,0.73397]
[1739549700211,2.86332498,2724.3,2724.2,0.73397]
[1739549700815,3.59727498,2724.3,2724.2,0.73397]
[1739549701216,4.54357498,2724.3,2724.2,0.73397]
[1739549701416,3.80962498,2724.3,2723.8,5.04302]
[1739549701615,0.73403,2724.1,2724.0,0.73401]
[1739549701925,0.734,2724.2,2724.1,0.73398]
[1739549702217,3.2078,2724.5,2724.4,0.73392]
[1739549703114,0.0055139,2724.8,2724.7,0.73384]
[1739549703316,3.2078,2725.1,2724.7,0.73384]
[1739549703622,3.2078,2725.1,2725.0,0.73376]
[1739549704125,0.73379,2724.9,2724.8,0.7338]
[1739549704315,0.73378,2725.0,2724.5,4.1067]
[1739549704618,3.2133139,2725.1,2724.6,0.0055139]
[1739549704813,2.86332498,2724.9,2724.6,0.0055139]
[1739549705014,0.73384,2724.7,2724.6,0.7393739]
[1739549705223,2.86332498,2724.9,2724.6,0.0055139]
[1739549705924,0.73382,2724.8,2724.7,0.73384]
[1739549706119,3.7355,2725.0,2724.6,0.0055139]
[1739549706323,1.901,2725.0,2724.9,0.73379]
[1739549706822,3.2133139,2725.1,2725.0,0.73376]
[1739549707019,3.9470639,2725.1,2725.0,0.73376]
[1739549707321,3.9470639,2725.1,2724.6,1.8401639]
[1739549707322,9.2133139,2725.1,2724.6,0.0055139]
[1739549707519,0.73384,2724.7,2724.6,0.7393839]
[1739549707720,3.2078,2726.3,2724.6,8.29192969]
[1739549707921,2.86332498,2728.0,2726.1,0.73347]
[1739549707922,4.13,2726.6,2726.1,0.73347]
[1739549708121,0.9222,2726.6,2725.8,3.2078]
[1739549708420,1.83374,2726.0,2724.7,0.9662]
[1739549708619,6.07112498,2725.3,2724.8,0.9164]
[1739549708822,3.2078,2725.3,2724.8,0.9164]
[1739549709022,3.21330227,2725.3,2725.2,0.73371]
[1739549709326,0.00550227,2725.3,2725.2,0.73371]
[1739549709527,3.21330227,2725.3,2724.8,0.9164]
[1739549709726,6.07662725,2725.3,2724.6,3.2133139]
[1739549709923,0.9343,2725.2,2724.6,3.2133139]
[1739549710224,3.2078,2724.8,2724.6,0.0055139]
[1739549710526,3.2078,2724.8,2723.9,3.2078]
[1739549710727,3.9417,2724.5,2724.0,0.73401]
[1739549710919,2.63394,2724.4,2724.0,0.73403]
[1739549711120,0.73397,2724.3,2723.9,0.73405]
[1739549711322,4.55134,2724.4,2724.0,0.73403]
[1739549711527,3.2078,2724.2,2723.5,3.2078]
[1739549711729,3.94179,2724.2,2723.9,0.00550227]
[1739549712332,4.23818177,2724.2,2723.9,0.00550227]
[1739549712527,3.58760525,2724.0,2723.2,3.2078]
[1739549712837,9.50419177,2724.2,2723.0,0.9603]
[1739549712838,0.73417,2723.5,2723.0,0.9603]
[1739549713125,3.2078,2723.2,2722.4,3.2078]
[1739549713332,5.84206,2723.2,2722.4,3.2078]
[1739549713522,6.74646,2723.2,2722.6,0.7344]
[1739549713828,0.00550227,2723.1,2722.5,0.00550227]
[1739549714026,0.00550227,2723.1,2722.9,0.73431]
[1739549714241,0.00550227,2723.1,2722.8,0.73435]
[1739549714437,3.2078,2722.9,2722.5,0.00550227]
[1739549714644,6.79540525,2722.6,2721.4,5.0583]
[1739549714944,3.2078,2721.7,2721.2,0.73477]
[1739549715151,8.69540525,2721.7,2720.9,3.2078]
[1739549715746,8.69540525,2721.7,2721.2,0.73478]
[1739549716045,0.00550227,2721.6,2721.3,3.2078]
[1739549716238,0.00550227,2721.6,2721.4,0.73471]
[1739549716439,0.00550227,2721.6,2721.3,3.2078]
[1739549716649,3.2078,2721.5,2721.0,0.00550227]
[1739549716948,3.58760525,2721.1,2720.0,3.2078]
[1739549717149,3.58760525,2720.8,2720.0,4.0896]
[1739549717347,3.58760525,2720.8,2720.4,0.73498]
[1739549717647,3.58760525,2720.8,2720.0,0.8818]
[1739549717843,3.2078,2720.6,2720.1,0.73508]
[1739549718042,3.2078,2720.6,2720.2,0.73503]
[1739549718243,3.2078,2720.6,2720.4,0.73498]
[1739549718436,3.2078,2720.6,2720.1,0.00551258]
[1739549718850,3.2078,2720.6,2720.2,0.73503]
[1739549719345,3.2078,2720.6,2720.1,0.00551258]
[1739549719548,6.22360525,2720.5,2720.1,0.00551258]
[1739549719843,3.58760525,2720.2,2719.3,3.2078]
[1739549720044,3.58760525,2719.8,2719.3,3.2078]
[1739549720948,3.58760525,2719.8,2719.0,0.9157]
[1739549720949,3.2078,2719.7,2719.0,4.1235]
[1739549721145,3.58760525,2719.4,2719.0,3.2078]
[1739549721343,3.58760525,2719.1,2718.5,3.2078]
[1739549721650,3.58760525,2719.1,2718.7,0.73545]
[1739549721651,6.79540525,2719.1,2718.7,0.73545]
[1739549722049,3.2078,2719.1,2719.0,0.73538]
[1739549722344,3.2078,2719.6,2718.8,3.2078]
[1739549722551,1.902,2719.7,2719.1,3.2078]
[1739549722752,0.00551258,2719.8,2719.7,0.73519]
[1739549723144,0.00551258,2719.8,2719.7,3.94299]
[1739549723347,3.2078,2720.5,2720.4,0.735]
[1739549723545,3.58760525,2720.6,2720.4,0.735]
[1739549723847,3.58760525,2720.6,2720.0,3.2078]
[1739549724054,1.902,2720.7,2719.7,0.73519]
[1739549724055,1.902,2720.7,2720.6,0.73495]
[1739549724247,3.2078,2720.8,2720.7,0.73492]
[1739549724447,3.2078,2720.8,2720.4,0.00551258]
[1739549724849,0.00551258,2720.9,2720.8,0.7349]
[1739549725548,0.00551258,2720.9,2720.6,3.2078]
[1739549725750,9.03671948,2720.9,2719.8,3.2078]
[1739549725945,3.2078,2720.6,2719.8,3.2078]
[1739549726150,0.73502,2720.4,2719.8,3.2078]
[1739549726447,4.6563969,2720.5,2719.8,3.2078]
[1739549726653,0.73501,2720.4,2720.1,0.73506]
[1739549726848,0.73501,2720.4,2720.0,0.7351]
[1739549727045,3.2078,2720.3,2719.9,0.73513]
[1739549727250,0.7351,2720.1,2719.7,0.73517]
[1739549727452,4.12,2720.3,2719.6,0.73521]
[1739549727652,0.73514,2720.0,2719.6,0.73521]
[1739549727952,4.12,2720.3,2719.5,3.2078]
[1739549728149,0.73512,2720.0,2719.5,3.2078]
[1739549728450,4.12,2720.3,2719.5,3.2078]
[1739549728655,6.022,2720.3,2719.5,3.2078]
[1739549728852,6.022,2720.3,2719.5,5.04588]
[1739549729054,6.022,2720.3,2719.5,3.2078]
[1739549729253,6.75705,2720.3,2720.0,0.73511]
[1739549729449,6.75705,2720.3,2719.5,3.2078]
[1739549729450,6.022,2720.3,2719.5,3.2078]
[1739549729959,6.022,2720.3,2720.1,0.73507]
[1739549730158,6.022,2720.3,2720.2,0.73506]
[1739549730858,5.1098,2720.3,2719.8,3.2078]
[1739549731058,5.1098,2720.3,2720.2,0.73506]
[1739549731559,1.90751258,2720.9,2720.8,0.7349]
[1739549731855,0.00551258,2720.9,2720.8,0.7349]
[1739549732653,0.00551258,2720.9,2720.3,1.83758]
[1739549732654,0.00551258,2720.9,2720.7,0.73492]
[1739549732854,0.00551258,2720.9,2720.8,0.7349]
[1739549733053,0.00551258,2720.9,2720.4,3.2078]
[1739549733257,3.2078,2720.7,2720.4,0.73499]
[1739549733567,3.2078,2720.7,2720.6,0.73495]
[1739549733957,1.902,2720.8,2720.3,3.2078]
[1739549734159,1.902,2720.8,2720.7,0.73492]
[1739549734357,0.00551258,2720.9,2720.4,1.83752]
[1739549734563,0.00551258,2720.9,2720.8,0.7349]
[1739549735059,0.00551258,2720.9,2720.7,0.7349]
[1739549735267,3.2078,2720.8,2719.9,1.83779]
[1739549735463,1.902,2720.7,2720.5,0.73497]
[1739549735651,1.902,2720.7,2720.0,3.2078]
[1739549735855,0.73495,2720.6,2720.4,0.73498]
[1739549736061,1.902,2720.7,2720.0,3.2078]
[1739549736565,1.902,2720.7,2720.6,0.73495]
[1739549736863,0.8775,2720.8,2720.7,0.73492]
[1739549737062,0.00551258,2720.9,2720.3,5.04535]
[1739549737362,0.00551258,2720.9,2720.8,0.73489]
[1739549737761,0.74039258,2720.9,2720.3,5.04535]
[1739549738063,0.74039258,2720.9,2720.7,0.7349]
[1739549738457,0.73491,2720.8,2720.6,0.73494]
[1739549739156,0.00551258,2720.9,2720.3,3.2078]
[1739549739352,0.00551258,2720.9,2720.7,0.73491]
[1739549739656,3.2078,2720.8,2720.0,3.2078]
[1739549739861,3.2078,2720.8,2720.0,5.04555]
[1739549739862,4.1392,2720.8,2720.0,5.04555]
[1739549740064,4.1392,2720.8,2720.0,3.2078]
[1739549740259,0.73503,2720.3,2719.7,0.8885]
[1739549740562,3.2078,2720.5,2719.6,5.04584]
[1739549740563,3.2078,2720.2,2719.6,5.04584]
[1739549740869,3.94286,2720.2,2720.1,0.73508]
[1739549741460,3.2078,2720.2,2720.1,0.73508]
[1739549741759,3.2078,2720.5,2720.3,0.73503]
[1739549742068,3.2078,2720.5,2720.2,0.73504]
[1739549742366,3.2078,2720.5,2719.6,3.2078]
[1739549742664,3.2078,2720.2,2720.1,0.73508]
[1739549743259,1.902,2720.4,2719.7,1.83799]
[1739549743559,0.73507,2720.2,2720.1,0.73507]
[1739549743762,1.902,2720.4,2719.8,1.83792]
[1739549743960,0.73504,2720.3,2720.2,0.73504]
[1739549744165,0.73506,2720.2,2720.1,0.73507]
[1739549744557,3.2078,2720.2,2719.7,1.83799]
[1739549744758,3.2078,2720.2,2720.1,0.73508]
[1739549745167,3.2078,2720.2,2719.6,3.2078]
[1739549745361,3.2078,2720.2,2719.7,1.83799]
[1739549745760,3.2078,2720.2,2719.6,3.2078]
[1739549745761,0.7351,2720.1,2720.0,0.7351]
[1739549746065,3.2078,2720.2,2719.9,0.73512]
[1739549746266,3.2078,2720.2,2719.5,1.83811]
[1739549746267,3.2078,2720.2,2719.3,6.8591]
[1739549746471,0.73511,2720.0,2719.9,0.73511]
[1739549746667,0.73515,2719.9,2719.8,0.73515]
[1739549746865,2.63715,2719.9,2719.8,0.73515]
[1739549747268,1.902,2719.9,2719.8,0.73515]
[1739549748564,2.63714,2719.9,2719.8,0.73515]
[1739549748966,1.902,2719.9,2719.8,0.73515]
[1739549749962,3.2078,2720.2,2720.1,0.73508]
[1739549750163,8.61442702,2720.6,2719.8,1.83786]
[1739549750363,0.73504,2720.3,2720.2,0.73503]
[1739549750567,8.61442702,2720.6,2719.9,1.83783]
[1739549750766,0.735,2720.5,2720.4,0.73498]
[1739549750966,8.61442702,2720.6,2719.9,1.83783]
[1739549751161,9.34938702,2720.6,2720.5,0.73497]
[1739549751367,4.83055,2720.6,2720.5,0.73497]
[1739549751569,0.735,2720.5,2720.4,0.73499]
[1739549751973,8.42877702,2720.6,2720.5,0.73497]
[1739549752168,7.5464296,2720.9,2720.2,1.83762]
[1739549752475,3.21331258,2720.9,2720.8,0.73489]
[1739549753469,0.73491,2720.8,2720.3,1.83758]
[1739549753776,3.21331258,2720.9,2720.8,0.73489]
[1739549754573,3.94819258,2720.9,2720.7,0.73491]
[1739549754773,3.94819258,2720.9,2720.5,3.2078]
[1739549755071,3.21331258,2720.9,2720.7,0.73492]
[1739549755269,3.94820258,2720.9,2720.7,0.73492]
[1739549755479,3.94820258,2720.9,2720.7,0.73491]
[1739549755776,3.21331258,2720.9,2720.5,3.2078]
[1739549756177,3.94820258,2720.9,2720.7,0.73491]
[1739549756477,3.21331258,2720.9,2720.8,0.73489]
[1739549758776,0.00551258,2720.9,2720.8,0.73489]
[1739549760077,0.73491,2720.8,2720.7,0.7349]
[1739549760374,0.00551258,2720.9,2720.2,5.04544]
[1739549760880,0.73491,2720.8,2720.7,0.73491]
[1739549761083,0.74039258,2720.9,2720.8,0.73489]
[1739549761285,0.00551258,2720.9,2720.8,0.73489]
[1739549762475,0.7349,2720.8,2720.7,0.73489]
[1739549762679,3.94820258,2720.9,2720.8,0.73489]
[1739549763271,3.21331258,2720.9,2720.8,0.73489]
[1739549763473,0.00551258,2720.9,2720.8,0.73489]
[1739549763676,0.74038258,2720.9,2720.8,0.73489]
[1739549763974,1.90651258,2720.9,2720.2,3.2078]
[1739549764179,3.59822702,2720.8,2720.0,0.9555]
[1739549764380,3.59822702,2720.5,2720.0,0.9555]
[1739549764582,1.90651258,2720.9,2719.4,5.04592]
[1739549764583,3.59822702,2720.2,2719.4,5.04592]
[1739549764774,5.49922702,2720.2,2719.7,0.73517]
[1739549764974,0.73515,2719.9,2719.7,0.73517]
[1739549765182,3.2078,2719.9,2719.2,1.8068]
[1739549765489,6.80602702,2719.9,2719.6,0.7352]
[1739549765882,7.54117702,2719.9,2719.7,0.73517]
[1739549766180,6.80602702,2719.9,2719.2,0.9094]
[1739549766381,3.59822702,2719.6,2719.2,0.9094]
[1739549766582,3.59822702,2719.6,2719.3,0.73528]
[1739549766780,0.73525,2719.5,2719.3,0.73528]
[1739549767185,6.80602702,2719.6,2718.6,5.04648]
[1739549767384,6.80602702,2719.6,2718.7,0.9553]
[1739549767583,6.80602702,2719.6,2718.0,10.0]
[1739549767584,3.59822702,2719.0,2718.0,10.0]
[1739549767787,0.73548,2718.7,2718.3,0.73556]
[1739549768085,3.2078,2718.8,2718.1,0.9553]
[1739549768086,3.94323,2718.8,2718.4,0.73552]
[1739549768277,3.94323,2718.8,2718.3,0.73556]
[1739549768278,0.73548,2718.7,2718.3,0.73556]
[1739549768478,3.2078,2718.8,2718.1,0.9553]
[1739549768679,0.73548,2718.7,2718.3,0.73556]
[1739549768887,3.59822702,2718.6,2718.0,10.0]
[1739549769091,3.59822702,2718.3,2718.0,10.0]
[1739549769392,1.901,2718.3,2718.0,10.0]
[1739549769585,1.901,2718.3,2718.1,0.73561]
[1739549769894,3.2078,2718.5,2718.2,0.7356]
[1739549770187,5.1088,2718.5,2718.2,0.7356]
[1739549770387,5.1088,2718.5,2718.1,0.7356]
[1739549770579,4.33381702,2718.3,2718.0,10.0]
[1739549770783,3.59822702,2718.3,2718.0,1.42002267]
[1739549770987,3.59822702,2718.3,2716.6,3.2078]
[1739549770988,5.43733702,2718.1,2716.6,3.2078]
[1739549771183,3.59822702,2717.6,2716.9,3.2078]
[1739549771388,3.2078,2718.0,2717.2,3.2078]
[1739549771586,2.58e-06,2717.6,2717.5,7.54181702]
[1739549772187,2.58e-06,2717.6,2717.5,13.54181702]
[1739549772394,2.58e-06,2717.6,2717.5,3.94359]
[1739549772688,2.58e-06,2717.6,2717.4,0.73579]
[1739549772892,2.58e-06,2717.6,2717.5,0.73579]
[1739549775088,2.58e-06,2717.6,2717.5,9.94359]
[1739549775287,2.58e-06,2717.6,2717.5,15.44381702]
[1739549775991,0.878,2719.2,2719.1,0.73535]
[1739549776196,3.2078,2719.4,2718.6,3.2078]
[1739549776385,3.2078,2719.4,2719.3,0.7353]
[1739549776686,3.2078,2719.4,2718.7,3.70566]
[1739549776687,1.902,2720.1,2719.2,3.2078]
[1739549776895,1.902,2720.1,2719.5,3.2078]
[1739549777083,3.2078,2720.2,2719.5,6.80602702]
[1739549777285,0.00551258,2720.1,2719.8,3.2078]
[1739549777489,0.00551258,2720.1,2720.0,0.73511]
[1739549777695,0.00551258,2720.1,2719.8,3.2078]
[1739549777889,0.00551258,2720.1,2719.6,2.7746]
[1739549778192,0.00551258,2720.1,2719.6,0.8906]
[1739549778380,3.21331258,2720.1,2719.7,0.73518]
[1739549778581,3.21331258,2720.1,2719.8,0.73515]
[1739549778784,3.21331258,2720.1,2719.6,0.8906]
[1739549779193,0.00551258,2720.1,2719.6,0.8906]
[1739549779388,0.00551258,2720.1,2719.8,3.2078]
[1739549779591,0.00551258,2720.1,2719.7,0.73517]
[1739549779793,0.00551258,2720.1,2719.9,0.73512]
[1739549779992,0.00551258,2720.1,2720.0,0.73511]
[1739549781388,2.796,2721.0,2720.8,0.73488]
[1739549781587,8.70802702,2721.2,2720.3,3.2078]
[1739549781790,3.2078,2720.8,2720.3,3.2078]
[1739549782097,3.94271,2720.8,2720.0,5.1098]
[1739549782395,3.2078,2720.8,2720.5,0.73496]
[1739549782586,0.00551258,2720.7,2720.6,0.73493]
[1739549783989,3.2078,2721.4,2720.6,3.2078]
[1739549784200,3.2078,2721.4,2721.1,0.73479]
[1739549784496,3.94254,2721.4,2721.1,0.73479]
[1739549784795,3.94254,2721.4,2720.7,0.9664]
[1739549784796,3.2078,2721.4,2720.7,0.9664]
[1739549784993,3.2078,2721.4,2720.8,0.73487]
[1739549785291,3.59822702,2721.1,2720.8,0.00551258]
[1739549785509,4.33303702,2721.1,2720.9,0.73485]
[1739549785793,0.73497,2720.6,2720.0,0.9664]
[1739549785993,3.2078,2720.6,2720.0,0.9664]
[1739549786297,3.2078,2720.9,2720.0,0.9664]
[1739549786493,3.2078,2720.9,2720.1,5.04552]
[1739549786698,3.2078,2720.9,2720.8,0.73489]
[1739549787194,1.901,2721.0,2720.9,0.73487]
[1739549787498,0.73488,2720.9,2720.4,3.2078]
[1739549787796,0.73499,2720.5,2720.2,0.00551258]
[1739549787988,4.1437,2720.9,2720.2,0.00551258]
[1739549788189,4.87858,2720.9,2720.2,0.00551258]
[1739549788395,0.7349,2720.8,2720.6,0.73493]
[1739549788796,3.2078,2720.9,2720.8,0.73489]
[1739549789093,3.9221581,2721.2,2721.1,0.73481]
[1739549789094,1.901,2721.2,2721.1,0.73481]
[1739549789389,1.901,2721.2,2720.6,5.04514]
[1739549789594,1.901,2721.2,2720.6,3.2078]
[1739549789795,2.6358,2721.2,2721.0,0.73482]
[1739549790092,1.901,2721.2,2721.1,0.73481]
[1739549790296,1.901,2721.2,2720.6,3.2078]
[1739549790494,0.73485,2721.0,2720.4,1.83746]
[1739549790695,5.8436,2721.2,2721.0,0.73482]
[1739549790997,5.1088,2721.2,2721.1,0.73481]
[1739549791198,5.84359,2721.2,2721.0,0.73482]
[1739549791387,0.73485,2721.0,2720.8,0.73487]
[1739549791589,5.1088,2721.2,2720.2,3.74410258]
[1739549791590,3.2078,2720.9,2720.2,0.00551258]
[1739549791991,3.2078,2720.6,2720.2,0.00551258]
[1739549792188,0.73503,2720.3,2720.2,0.00551258]
[1739549793099,5.1088,2720.6,2720.2,0.74057258]
[1739549793306,0.73503,2720.3,2720.2,0.00551258]
[1739549794189,9.2078,2720.3,2719.0,0.8965]
[1739549794504,0.73521,2719.7,2719.5,0.73524]
[1739549794800,0.9401,2720.2,2719.8,0.73515]
[1739549794995,1.901,2720.1,2720.0,0.73511]
[1739549795598,1.901,2720.1,2719.8,0.00551258]
[1739549795899,3.94294,2719.9,2719.8,0.00551258]
[1739549796100,3.2078,2719.9,2719.0,0.8965]
[1739549796304,0.7352,2719.7,2719.5,0.73523]
[1739549796495,3.2078,2719.9,2719.0,2.73492]
[1739549796691,0.73523,2719.6,2719.4,0.73526]
[1739549797003,0.73529,2719.4,2719.0,0.8965]
[1739549797201,0.73526,2719.5,2719.3,0.73529]
[1739549797901,3.2078,2719.6,2719.5,0.73525]
[1739549798499,1.901,2720.0,2719.3,1.83826]
[1739549798799,3.2078,2719.9,2719.3,0.73528]
[1739549798999,0.73526,2719.5,2719.3,0.73528]
[1739549799304,0.73524,2719.5,2718.9,0.9426]
[1739549799501,3.2078,2719.6,2719.5,0.73524]
[1739549799698,3.2078,2719.6,2718.9,0.9426]
[1739549799898,3.2078,2719.6,2718.2,5.04679]
[1739549799899,3.2078,2719.0,2718.2,5.04679]
[1739549800508,0.00551258,2718.9,2718.2,3.2078]
[1739549801206,0.00551258,2718.9,2718.6,0.73548]
[1739549801407,0.73546,2718.8,2718.7,0.73545]
[1739549801704,0.00551258,2718.9,2718.5,0.7355]
[1739549801895,0.73545,2718.8,2718.2,3.2078]
[1739549802096,0.00551258,2718.9,2718.8,0.73543]
[1739549803707,1.901,2720.3,2720.2,0.73506]
[1739549803911,0.735,2720.4,2720.2,0.73506]
[1739549804104,0.00551258,2720.5,2720.0,0.00551258]
[1739549804408,0.73504,2720.3,2720.1,0.73508]
[1739549804604,0.00551258,2720.5,2720.0,0.00551258]
[1739549804809,0.73503,2720.3,2720.1,0.73508]
[1739549805308,0.00551258,2720.5,2720.0,0.00551258]
[1739549805509,3.2078,2720.3,2720.0,0.00551258]
[1739549805709,0.73508,2720.1,2720.0,0.00551258]
[1739549808309,2.63508,2720.1,2720.0,0.00551258]
[1739549808507,0.73508,2720.1,2720.0,0.00551258]
[1739549808708,0.73507,2720.2,2720.0,0.00551258]
[1739549808903,0.73508,2720.1,2720.0,0.00551258]
[1739549809508,6.73508,2720.1,2720.0,0.00551258]
[1739549809801,0.73508,2720.1,2720.0,0.00551258]
[1739549810002,6.0,2720.1,2718.9,0.932]
[1739549810308,0.73526,2719.5,2719.3,0.73528]
[1739549810905,0.73526,2719.5,2718.9,0.932]
[1739549811107,3.2078,2719.6,2719.4,0.73526]
[1739549811513,3.2078,2719.6,2718.9,0.932]
[1739549811704,0.73525,2719.5,2719.3,0.73529]
[1739549811904,3.2078,2719.6,2718.9,0.932]
[1739549812104,1.9,2719.8,2719.1,3.2078]
[1739549812304,0.73524,2719.6,2719.4,0.73526]
[1739549812505,1.9,2719.8,2719.1,3.2078]
[1739549812705,4.1635,2720.0,2719.1,3.2078]
[1739549813006,0.73517,2719.8,2719.6,0.7352]
[1739549813415,6.0635,2720.0,2719.5,0.73523]
[1739549813416,0.73522,2719.6,2719.5,0.73523]
[1739549814108,6.0635,2720.0,2719.1,4.1019]
[1739549814109,3.2078,2719.7,2719.2,0.73531]
[1739549814414,3.2078,2719.7,2719.1,0.8941]
[1739549814609,0.73526,2719.5,2719.1,0.8941]
[1739549814811,0.73526,2719.5,2719.4,0.73527]
[1739549815307,3.2078,2719.7,2719.1,0.8941]
[1739549815614,0.73526,2719.5,2719.4,0.73527]
[1739549816211,0.73523,2719.6,2719.5,0.73523]
[1739549817120,0.73525,2719.5,2719.4,0.73525]
[1739549817420,0.73526,2719.5,2719.4,0.73525]
[1739549817610,3.2078,2720.1,2719.4,3.2078]
[1739549817811,3.2078,2720.1,2720.0,0.73509]
[1739549817812,0.7351,2720.1,2720.0,0.73509]
[1739549818015,0.73516,2719.9,2719.8,0.73515]
[1739549818212,0.73513,2720.0,2719.9,0.73512]
[1739549818416,0.7351,2720.1,2720.0,0.7351]
[1739549818617,1.83758,2720.3,2719.7,0.9371]
[1739549818814,3.2078,2720.1,2719.7,0.9371]
[1739549819214,0.73516,2719.8,2719.7,0.9371]
[1739549819518,0.73524,2719.6,2719.5,0.73523]
[1739549820113,0.73524,2719.5,2719.4,1.62125]
[1739549820317,0.73527,2719.4,2719.3,0.9371]
[1739549820910,0.73527,2719.4,2718.9,5.04631]
[1739549820911,6.80680151,2719.7,2718.9,3.2078]
[1739549821215,6.80680151,2719.7,2718.8,0.9679]
[1739549821216,0.73541,2718.9,2718.8,0.9686]
[1739549821724,0.73541,2719.0,2718.8,0.9686]
[1739549821915,0.00551258,2719.1,2718.8,0.9686]
[1739549822117,0.73541,2718.9,2718.8,0.9686]
[1739549822420,0.00551258,2719.1,2718.8,0.9686]
[1739549822616,0.74088258,2719.1,2718.9,0.73541]
[1739549822814,0.73538,2719.0,2718.9,0.73541]
[1739549823120,0.00551258,2719.1,2718.8,0.9686]
[1739549823316,0.00551258,2719.1,2719.0,0.73538]
[1739549823512,3.943,2719.7,2719.6,0.73522]